[Event "*** Titled Tuesday Blitz"]
[Site "Chess.com"]
[Date "2019.02.05"]
[Round "3"]
[White "Bauxi435"]
[Black "Zarikovs1999"]
[Result "1-0"]
[WhiteElo "2446"]
[BlackElo "2315"]
[TimeControl "180+2"]
[EndTime "13:34:44 PST"]
[Termination "Bauxi435 won on time"]

1. d4 {[%clk 0:03:01.9]} 1... Nf6 {[%clk 0:03:00.7]} 2. c4 {[%clk 0:03:02.9]}
2... c5 {[%clk 0:03:00.9]} 3. d5 {[%clk 0:03:03.9]} 3... b5 {[%clk 0:03:01.6]}
4. cxb5 {[%clk 0:03:05.8]} 4... a6 {[%clk 0:03:02.6]} 5. bxa6 {[%clk 0:03:07.7]}
5... g6 {[%clk 0:03:03.9]} 6. Nc3 {[%clk 0:03:07.9]} 6... Bg7 {[%clk 0:03:05.3]}
7. a7 {[%clk 0:03:08.9]} 7... Rxa7 {[%clk 0:03:02.6]} 8. e4 {[%clk 0:03:09.9]}
8... d6 {[%clk 0:02:59.9]} 9. Nf3 {[%clk 0:03:10.9]} 9... O-O {[%clk 0:03:00.8]}
10. Be2 {[%clk 0:03:11.7]} 10... Ba6 {[%clk 0:02:56.6]} 11. O-O {[%clk 0:03:12]}
11... Bxe2 {[%clk 0:02:54.5]} 12. Qxe2 {[%clk 0:03:12.9]} 12... Na6 {[%clk
0:02:56.4]} 13. a4 {[%clk 0:03:09.8]} 13... Qb6 {[%clk 0:02:44.6]} 14. Bd2
{[%clk 0:03:02.1]} 14... Nd7 {[%clk 0:02:16.9]} 15. Nb5 {[%clk 0:02:50.7]} 15...
Raa8 {[%clk 0:02:06.5]} 16. Rac1 {[%clk 0:02:44.4]} 16... Nc7 {[%clk 0:01:43.5]}
17. Nxc7 {[%clk 0:02:29.3]} 17... Qxc7 {[%clk 0:01:43.4]} 18. b3 {[%clk
0:02:27.6]} 18... Rfb8 {[%clk 0:01:43.1]} 19. Qd3 {[%clk 0:02:18.6]} 19... Rb7
{[%clk 0:01:27]} 20. a5 {[%clk 0:02:17.5]} 20... Nb8 {[%clk 0:01:22.3]} 21. b4
{[%clk 0:02:17.4]} 21... Qd7 {[%clk 0:01:00.6]} 22. bxc5 {[%clk 0:02:14.3]}
22... dxc5 {[%clk 0:01:02.5]} 23. Rxc5 {[%clk 0:02:10.1]} 23... Na6 {[%clk
0:01:03.5]} 24. Rc6 {[%clk 0:02:07.7]} 24... Nc7 {[%clk 0:00:44.6]} 25. Rfc1
{[%clk 0:02:07.5]} 25... Nb5 {[%clk 0:00:45.5]} 26. a6 {[%clk 0:02:00.1]} 26...
Rbb8 {[%clk 0:00:36]} 27. Be3 {[%clk 0:01:49.7]} 27... Nd6 {[%clk 0:00:10.7]}
28. Rc7 {[%clk 0:01:43]} 28... Qd8 {[%clk 0:00:10]} 29. Nd4 {[%clk 0:01:36.2]}
29... Bxd4 {[%clk 0:00:04.8]} 30. Bxd4 {[%clk 0:01:37.1]} 30... Nb5 {[%clk
0:00:06.1]} 31. R7c6 {[%clk 0:01:30.1]} 31... Nxd4 {[%clk 0:00:05.4]} 32. Qxd4
{[%clk 0:01:32]} 32... Qa5 {[%clk 0:00:04.4]} 33. h4 {[%clk 0:01:27.5]} 33...
Rxa6 {[%clk 0:00:03.7]} 34. Rc8+ {[%clk 0:01:27.9]} 1-0

[Event "*** Titled Tuesday Blitz"]
[Site "Chess.com"]
[Date "2019.02.05"]
[Round "3"]
[White "MehdiHosseinipour"]
[Black "Anar_Aliakbarov"]
[Result "1-0"]
[WhiteElo "2530"]
[BlackElo "2470"]
[TimeControl "180+2"]
[EndTime "13:34:45 PST"]
[Termination "MehdiHosseinipour won by resignation"]

1. e4 {[%clk 0:03:01.9]} 1... e5 {[%clk 0:03:00.2]} 2. Nf3 {[%clk 0:03:02.7]}
2... Nf6 {[%clk 0:03:01.1]} 3. Nxe5 {[%clk 0:03:01.7]} 3... d6 {[%clk
0:03:02.6]} 4. Nf3 {[%clk 0:03:03]} 4... Nxe4 {[%clk 0:03:04]} 5. Nc3 {[%clk
0:03:04.9]} 5... Nxc3 {[%clk 0:03:04.7]} 6. dxc3 {[%clk 0:03:06.8]} 6... Be7
{[%clk 0:03:06.2]} 7. Be3 {[%clk 0:03:08.4]} 7... O-O {[%clk 0:03:07.8]} 8. Qd2
{[%clk 0:03:10.1]} 8... Nd7 {[%clk 0:03:09.5]} 9. O-O-O {[%clk 0:03:10.2]} 9...
Ne5 {[%clk 0:03:10.7]} 10. h4 {[%clk 0:03:07.5]} 10... c6 {[%clk 0:03:10.6]} 11.
Nxe5 {[%clk 0:02:31.9]} 11... dxe5 {[%clk 0:03:10.3]} 12. Bd3 {[%clk 0:02:33.6]}
12... Qa5 {[%clk 0:03:10]} 13. Kb1 {[%clk 0:02:35.1]} 13... Be6 {[%clk
0:03:09.7]} 14. c4 {[%clk 0:02:31.8]} 14... Qxd2 {[%clk 0:03:07.5]} 15. Bxd2
{[%clk 0:02:33.7]} 15... Bc5 {[%clk 0:02:50.8]} 16. f3 {[%clk 0:02:28.6]} 16...
Rad8 {[%clk 0:02:49]} 17. Rde1 {[%clk 0:02:23.3]} 17... Bxc4 {[%clk 0:02:40.2]}
18. Bg5 {[%clk 0:02:21.5]} 18... Rxd3 {[%clk 0:02:19.1]} 19. cxd3 {[%clk
0:02:22.9]} 19... Bxd3+ {[%clk 0:02:21]} 20. Kc1 {[%clk 0:02:19.2]} 20... f6
{[%clk 0:02:21.6]} 21. Be3 {[%clk 0:02:19.7]} 21... Bb4 {[%clk 0:02:21]} 22. Bd2
{[%clk 0:02:21]} 22... Bc5 {[%clk 0:02:21.9]} 23. Be3 {[%clk 0:02:19.4]} 23...
Be7 {[%clk 0:02:06.5]} 24. Rd1 {[%clk 0:02:18]} 24... Bc4 {[%clk 0:02:07.6]} 25.
Rd7 {[%clk 0:02:17]} 25... Kf7 {[%clk 0:02:03.5]} 26. Bc5 {[%clk 0:02:10]} 26...
Re8 {[%clk 0:02:03.8]} 27. b3 {[%clk 0:02:11.4]} 27... Ba6 {[%clk 0:02:03.4]}
28. Rhd1 {[%clk 0:01:39.1]} 28... Ke6 {[%clk 0:02:03.4]} 29. Bxe7 {[%clk
0:01:34.6]} 29... Rxe7 {[%clk 0:02:04]} 30. Rd8 {[%clk 0:01:36.2]} 30... g6
{[%clk 0:01:56.7]} 31. g4 {[%clk 0:01:31.5]} 31... Be2 {[%clk 0:01:53.7]} 32.
R1d6+ {[%clk 0:01:32.3]} 32... Kf7 {[%clk 0:01:55]} 33. g5 {[%clk 0:01:33.9]}
33... f5 {[%clk 0:01:47.7]} 34. Rf6+ {[%clk 0:01:18.9]} 34... Kg7 {[%clk
0:01:48.3]} 35. Rff8 {[%clk 0:01:20.4]} 35... h5 {[%clk 0:01:41.1]} 36. Rg8+
{[%clk 0:00:45.2]} 36... Kh7 {[%clk 0:01:39.3]} 37. Rge8 {[%clk 0:00:32.4]}
37... Rf7 {[%clk 0:01:22.4]} 38. Rh8+ {[%clk 0:00:32.4]} 1-0

[Event "*** Titled Tuesday Blitz"]
[Site "Chess.com"]
[Date "2019.02.05"]
[Round "3"]
[White "Entilza"]
[Black "aquaticpineapples"]
[Result "1/2-1/2"]
[WhiteElo "2197"]
[BlackElo "2105"]
[TimeControl "180+2"]
[EndTime "13:34:51 PST"]
[Termination "Game drawn by repetition"]

1. d4 {[%clk 0:03:00.8]} 1... d5 {[%clk 0:03:00.7]} 2. c4 {[%clk 0:03:01.3]}
2... e6 {[%clk 0:03:00.9]} 3. Nc3 {[%clk 0:03:01.7]} 3... Nf6 {[%clk 0:03:01.2]}
4. Nf3 {[%clk 0:03:00.3]} 4... Be7 {[%clk 0:03:00.1]} 5. Bf4 {[%clk 0:02:59.2]}
5... O-O {[%clk 0:03:00.1]} 6. e3 {[%clk 0:02:58.5]} 6... a6 {[%clk 0:02:57.2]}
7. Rc1 {[%clk 0:02:56]} 7... c6 {[%clk 0:02:50]} 8. a3 {[%clk 0:02:53.9]} 8...
b5 {[%clk 0:02:48.3]} 9. c5 {[%clk 0:02:45.8]} 9... a5 {[%clk 0:02:45.8]} 10.
Bd3 {[%clk 0:02:42.9]} 10... b4 {[%clk 0:02:45.3]} 11. Na4 {[%clk 0:02:39.2]}
11... Ba6 {[%clk 0:02:39.9]} 12. Nb6 {[%clk 0:02:31.2]} 12... Ra7 {[%clk
0:02:38.9]} 13. O-O {[%clk 0:02:27.2]} 13... Nfd7 {[%clk 0:02:33.3]} 14. Nxd7
{[%clk 0:02:03.5]} 14... Qxd7 {[%clk 0:02:27.8]} 15. Ne5 {[%clk 0:01:57.9]}
15... Qb7 {[%clk 0:02:27.6]} 16. Qa4 {[%clk 0:01:51.5]} 16... Bxd3 {[%clk
0:02:25.1]} 17. Nxd3 {[%clk 0:01:47]} 17... bxa3 {[%clk 0:02:25.4]} 18. bxa3
{[%clk 0:01:48.9]} 18... Nd7 {[%clk 0:02:24]} 19. Rb1 {[%clk 0:01:47.5]} 19...
Qa6 {[%clk 0:02:24.5]} 20. Rb3 {[%clk 0:01:45]} 20... Qc4 {[%clk 0:02:13.2]} 21.
Nb2 {[%clk 0:01:41.5]} 21... Qxa4 {[%clk 0:02:09.8]} 22. Nxa4 {[%clk 0:01:43.4]}
22... e5 {[%clk 0:01:59.6]} 23. Bg3 {[%clk 0:01:40.1]} 23... exd4 {[%clk
0:01:59]} 24. exd4 {[%clk 0:01:42]} 24... Bf6 {[%clk 0:01:59.1]} 25. Rd1 {[%clk
0:01:40.7]} 25... g6 {[%clk 0:01:55.7]} 26. Bd6 {[%clk 0:01:35.3]} 26... Re8
{[%clk 0:01:54.8]} 27. Kf1 {[%clk 0:01:33.5]} 27... Re4 {[%clk 0:00:58.7]} 28.
Nb6 {[%clk 0:01:31.5]} 28... Rxd4 {[%clk 0:00:49.2]} 29. Re1 {[%clk 0:01:23.2]}
29... Kg7 {[%clk 0:00:31]} 30. Nc8 {[%clk 0:01:18.1]} 30... Ra8 {[%clk
0:00:27.6]} 31. Nb6 {[%clk 0:01:13]} 31... Ra7 {[%clk 0:00:21.5]} 32. Nc8 {[%clk
0:01:05.3]} 32... Ra8 {[%clk 0:00:22.4]} 33. Nb6 {[%clk 0:01:03.8]} 33... Ra7
{[%clk 0:00:22.5]} 1/2-1/2

[Event "*** Titled Tuesday Blitz"]
[Site "Chess.com"]
[Date "2019.02.05"]
[Round "3"]
[White "murmah2003"]
[Black "Indianlad"]
[Result "0-1"]
[WhiteElo "2666"]
[BlackElo "2925"]
[TimeControl "180+2"]
[EndTime "13:34:53 PST"]
[Termination "Indianlad won by resignation"]

1. d4 {[%clk 0:02:59.5]} 1... Nf6 {[%clk 0:03:00.7]} 2. c4 {[%clk 0:02:59.6]}
2... e6 {[%clk 0:03:01.9]} 3. Nf3 {[%clk 0:03:00.3]} 3... b6 {[%clk 0:03:02.6]}
4. g3 {[%clk 0:03:00.7]} 4... Ba6 {[%clk 0:03:03.8]} 5. b3 {[%clk 0:03:01.5]}
5... d5 {[%clk 0:03:04.6]} 6. Bg2 {[%clk 0:02:53.2]} 6... Bb4+ {[%clk 0:03:06]}
7. Bd2 {[%clk 0:02:53.4]} 7... Bd6 {[%clk 0:03:06.9]} 8. O-O {[%clk 0:02:34.3]}
8... O-O {[%clk 0:03:07.7]} 9. Bc3 {[%clk 0:02:31.6]} 9... Nbd7 {[%clk
0:02:38.5]} 10. Nbd2 {[%clk 0:02:25]} 10... Rc8 {[%clk 0:02:38.1]} 11. Re1
{[%clk 0:02:22.3]} 11... c5 {[%clk 0:02:33.3]} 12. e4 {[%clk 0:02:20.7]} 12...
cxd4 {[%clk 0:02:31.7]} 13. Bxd4 {[%clk 0:01:37]} 13... e5 {[%clk 0:02:28]} 14.
Bb2 {[%clk 0:01:38.3]} 14... d4 {[%clk 0:02:27.1]} 15. Bxd4 {[%clk 0:01:39.6]}
15... exd4 {[%clk 0:02:25.8]} 16. e5 {[%clk 0:01:40.9]} 16... Nc5 {[%clk
0:02:06.1]} 17. Qc2 {[%clk 0:00:44.7]} 17... d3 {[%clk 0:02:01.1]} 18. Qb2
{[%clk 0:00:44]} 18... Be7 {[%clk 0:02:01.9]} 19. exf6 {[%clk 0:00:39.6]} 19...
Bxf6 {[%clk 0:02:03.8]} 20. Ne5 {[%clk 0:00:41.2]} 20... Nd7 {[%clk 0:02:04.7]}
21. f4 {[%clk 0:00:26.1]} 21... b5 {[%clk 0:01:43.3]} 22. Qa3 {[%clk 0:00:20.1]}
22... Nxe5 {[%clk 0:01:37.8]} 23. fxe5 {[%clk 0:00:20.7]} 23... Bxe5 {[%clk
0:01:39.7]} 24. Rad1 {[%clk 0:00:09.8]} 24... Qb6+ {[%clk 0:01:40.5]} 25. Kh1
{[%clk 0:00:10.6]} 25... b4 {[%clk 0:01:41.5]} 26. Qa4 {[%clk 0:00:06.5]} 26...
Bc3 {[%clk 0:01:42.5]} 27. Rf1 {[%clk 0:00:07.7]} 27... Bb7 {[%clk 0:01:41.4]}
28. Nf3 {[%clk 0:00:04.1]} 28... Bc6 {[%clk 0:01:38.9]} 29. c5 {[%clk
0:00:02.6]} 29... Qxc5 {[%clk 0:01:30.9]} 30. Qa6 {[%clk 0:00:04]} 30... Bb5
{[%clk 0:01:31.1]} 31. Qb7 {[%clk 0:00:05.2]} 31... d2 {[%clk 0:01:31.4]} 32.
Qe4 {[%clk 0:00:05.4]} 32... Bxf1 {[%clk 0:01:32]} 33. Bxf1 {[%clk 0:00:07.3]}
33... Rce8 {[%clk 0:01:31.8]} 34. Qg4 {[%clk 0:00:05]} 34... Re1 {[%clk
0:01:27.6]} 0-1

[Event "*** Titled Tuesday Blitz"]
[Site "Chess.com"]
[Date "2019.02.05"]
[Round "3"]
[White "INLOVEWITHF"]
[Black "Hieronymus00"]
[Result "1-0"]
[WhiteElo "2276"]
[BlackElo "2171"]
[TimeControl "180+2"]
[EndTime "13:34:53 PST"]
[Termination "INLOVEWITHF won by resignation"]

1. e4 {[%clk 0:03:01.9]} 1... e5 {[%clk 0:02:57.8]} 2. Nf3 {[%clk 0:03:02.1]}
2... Nc6 {[%clk 0:02:58.6]} 3. Bb5 {[%clk 0:03:03]} 3... a6 {[%clk 0:02:59.3]}
4. Ba4 {[%clk 0:03:04.1]} 4... Nf6 {[%clk 0:02:59.9]} 5. O-O {[%clk 0:03:04.3]}
5... Bc5 {[%clk 0:03:00.8]} 6. c3 {[%clk 0:02:55.3]} 6... b5 {[%clk 0:03:01.4]}
7. Bc2 {[%clk 0:02:50.6]} 7... d5 {[%clk 0:03:02.1]} 8. d4 {[%clk 0:02:47.7]}
8... dxe4 {[%clk 0:03:01.5]} 9. Nxe5 {[%clk 0:02:46.3]} 9... Nxe5 {[%clk
0:02:53.2]} 10. dxe5 {[%clk 0:02:48.2]} 10... Qxd1 {[%clk 0:02:52.3]} 11. Rxd1
{[%clk 0:02:48.8]} 11... Ng4 {[%clk 0:02:53.2]} 12. Bxe4 {[%clk 0:02:47.4]}
12... Rb8 {[%clk 0:02:52.1]} 13. Rf1 {[%clk 0:02:29.1]} 13... Nxe5 {[%clk
0:02:40.4]} 14. Bf4 {[%clk 0:02:19.2]} 14... f6 {[%clk 0:02:35.6]} 15. Re1
{[%clk 0:02:13.5]} 15... O-O {[%clk 0:02:25.9]} 16. Nd2 {[%clk 0:02:10]} 16...
Ng4 {[%clk 0:02:20.6]} 17. Re2 {[%clk 0:02:09.6]} 17... Bb6 {[%clk 0:02:12.6]}
18. h3 {[%clk 0:02:09.1]} 18... Ne5 {[%clk 0:02:05.2]} 19. Bd5+ {[%clk
0:02:00.2]} 19... Kh8 {[%clk 0:02:05.6]} 20. Bxe5 {[%clk 0:01:59.1]} 20... fxe5
{[%clk 0:02:06.6]} 21. Nf3 {[%clk 0:01:59.6]} 21... Bf5 {[%clk 0:01:39.7]} 22.
Nxe5 {[%clk 0:01:53.6]} 22... h6 {[%clk 0:01:33.7]} 23. Nf3 {[%clk 0:01:37.9]}
23... Rbd8 {[%clk 0:01:31.3]} 24. Be4 {[%clk 0:01:35]} 24... Be6 {[%clk
0:01:25.9]} 25. Ne5 {[%clk 0:01:31.2]} 25... Rf6 {[%clk 0:01:17.3]} 26. Rae1
{[%clk 0:01:05]} 26... Bxa2 {[%clk 0:01:14.9]} 27. Bc2 {[%clk 0:01:00.2]} 27...
Kg8 {[%clk 0:00:31]} 28. Ng6 {[%clk 0:00:57.6]} 28... Bc5 {[%clk 0:00:23.5]} 29.
b3 {[%clk 0:00:50.9]} 29... Rdf8 {[%clk 0:00:20.7]} 30. Nxf8 {[%clk 0:00:49.8]}
30... Kxf8 {[%clk 0:00:19.5]} 31. Ra1 {[%clk 0:00:49.7]} 1-0

[Event "*** Titled Tuesday Blitz"]
[Site "Chess.com"]
[Date "2019.02.05"]
[Round "3"]
[White "2165149677570"]
[Black "jcibarra"]
[Result "0-1"]
[WhiteElo "2298"]
[BlackElo "2704"]
[TimeControl "180+2"]
[EndTime "13:34:55 PST"]
[Termination "jcibarra won by resignation"]

1. e4 {[%clk 0:03:01.9]} 1... c5 {[%clk 0:02:58.8]} 2. Nf3 {[%clk 0:03:02.7]}
2... e6 {[%clk 0:02:58.6]} 3. d4 {[%clk 0:03:03.3]} 3... cxd4 {[%clk 0:03:00.5]}
4. Nxd4 {[%clk 0:03:05]} 4... Bc5 {[%clk 0:02:56.2]} 5. Nb3 {[%clk 0:03:05.6]}
5... Bb6 {[%clk 0:02:55.2]} 6. a4 {[%clk 0:03:06.3]} 6... Ne7 {[%clk 0:02:55.3]}
7. a5 {[%clk 0:03:07]} 7... Bc7 {[%clk 0:02:55.5]} 8. Nc3 {[%clk 0:03:08.4]}
8... a6 {[%clk 0:02:53.3]} 9. g3 {[%clk 0:03:09]} 9... Nbc6 {[%clk 0:02:53.6]}
10. Qg4 {[%clk 0:03:05.4]} 10... O-O {[%clk 0:02:47.4]} 11. h4 {[%clk
0:02:54.6]} 11... f5 {[%clk 0:02:33.6]} 12. exf5 {[%clk 0:02:43.3]} 12... Nxf5
{[%clk 0:02:35.5]} 13. Bg5 {[%clk 0:02:36.5]} 13... Qe8 {[%clk 0:02:34.2]} 14.
Bd3 {[%clk 0:02:33.5]} 14... d5 {[%clk 0:02:30.3]} 15. O-O {[%clk 0:02:28]}
15... h6 {[%clk 0:02:22.6]} 16. Bd2 {[%clk 0:02:19.5]} 16... Ne5 {[%clk
0:02:18.3]} 17. Qe2 {[%clk 0:02:15.2]} 17... Nxh4 {[%clk 0:01:58.6]} 18. gxh4
{[%clk 0:02:13.2]} 18... Nf3+ {[%clk 0:01:57.5]} 19. Kg2 {[%clk 0:01:44.2]}
19... Nxh4+ {[%clk 0:01:49.3]} 20. Kh1 {[%clk 0:01:35.4]} 20... Nf3 {[%clk
0:01:47.1]} 21. Kg2 {[%clk 0:01:32]} 21... e5 {[%clk 0:01:25.8]} 22. Rh1 {[%clk
0:01:21.3]} 22... e4 {[%clk 0:01:26.2]} 23. Nxe4 {[%clk 0:01:07.8]} 23... Bg4
{[%clk 0:01:11.2]} 24. Nf6+ {[%clk 0:00:34.2]} 24... Rxf6 {[%clk 0:01:09.1]} 25.
Qxe8+ {[%clk 0:00:34.1]} 25... Rxe8 {[%clk 0:01:11]} 26. Bc3 {[%clk 0:00:34.1]}
26... d4 {[%clk 0:01:05.8]} 27. Nxd4 {[%clk 0:00:24.1]} 27... Nxd4 {[%clk
0:01:02.4]} 28. Bxd4 {[%clk 0:00:26]} 28... Bf3+ {[%clk 0:01:01]} 29. Kg1 {[%clk
0:00:27.4]} 29... Rf4 {[%clk 0:00:55.4]} 30. Be3 {[%clk 0:00:27.2]} 30... Rg4+
{[%clk 0:00:54.5]} 0-1

[Event "*** Titled Tuesday Blitz"]
[Site "Chess.com"]
[Date "2019.02.05"]
[Round "3"]
[White "igorkovalenko"]
[Black "Pilopa"]
[Result "0-1"]
[WhiteElo "2852"]
[BlackElo "2476"]
[TimeControl "180+2"]
[EndTime "13:34:59 PST"]
[Termination "Pilopa won by resignation"]

1. d4 {[%clk 0:03:01.9]} 1... Nf6 {[%clk 0:03:00.7]} 2. Nf3 {[%clk 0:03:03.8]}
2... g6 {[%clk 0:03:01.5]} 3. g3 {[%clk 0:03:03.7]} 3... Bg7 {[%clk 0:03:02.3]}
4. Bg2 {[%clk 0:03:05.6]} 4... O-O {[%clk 0:03:03.4]} 5. O-O {[%clk 0:03:06.3]}
5... d5 {[%clk 0:03:03.9]} 6. a4 {[%clk 0:03:06.5]} 6... a5 {[%clk 0:02:51.4]}
7. Bf4 {[%clk 0:03:02.8]} 7... c6 {[%clk 0:02:52.1]} 8. Nbd2 {[%clk 0:03:03.3]}
8... Bf5 {[%clk 0:02:47.2]} 9. c4 {[%clk 0:03:01.2]} 9... Na6 {[%clk 0:02:45.2]}
10. Be5 {[%clk 0:03:02.4]} 10... Nb4 {[%clk 0:02:43.6]} 11. Rc1 {[%clk 0:03:03]}
11... Qb6 {[%clk 0:02:25.3]} 12. Qb3 {[%clk 0:03:01.8]} 12... Be6 {[%clk
0:02:22.8]} 13. e3 {[%clk 0:02:56.5]} 13... Qa6 {[%clk 0:02:16.9]} 14. Ng5
{[%clk 0:02:47.3]} 14... Bf5 {[%clk 0:02:11]} 15. cxd5 {[%clk 0:02:43.2]} 15...
cxd5 {[%clk 0:02:11.8]} 16. Rc3 {[%clk 0:02:41.6]} 16... Rfc8 {[%clk 0:02:11.3]}
17. Rfc1 {[%clk 0:02:42.2]} 17... h6 {[%clk 0:02:07.4]} 18. Bf1 {[%clk
0:02:43.1]} 18... Qb6 {[%clk 0:01:58]} 19. Ngf3 {[%clk 0:02:43.2]} 19... Ne4
{[%clk 0:01:36.7]} 20. Nxe4 {[%clk 0:02:37.1]} 20... dxe4 {[%clk 0:01:32.2]} 21.
Bxg7 {[%clk 0:02:34.6]} 21... exf3 {[%clk 0:01:07.4]} 22. Bxh6 {[%clk
0:02:28.5]} 22... Be6 {[%clk 0:00:38.4]} 23. Qd1 {[%clk 0:02:28.2]} 23... Rxc3
{[%clk 0:00:32.9]} 24. bxc3 {[%clk 0:02:27.9]} 24... Na2 {[%clk 0:00:34.2]} 25.
Rb1 {[%clk 0:02:22.5]} 25... Nxc3 {[%clk 0:00:28.2]} 26. Rxb6 {[%clk 0:02:23.5]}
26... Nxd1 {[%clk 0:00:29.3]} 27. Rxb7 {[%clk 0:02:22]} 27... Nc3 {[%clk
0:00:29.8]} 28. h3 {[%clk 0:02:12.7]} 28... Nxa4 {[%clk 0:00:28.6]} 29. e4
{[%clk 0:02:13.3]} 29... Nc3 {[%clk 0:00:20.3]} 30. d5 {[%clk 0:02:14.5]} 30...
Bc8 {[%clk 0:00:20.9]} 31. Rxe7 {[%clk 0:02:15.7]} 31... a4 {[%clk 0:00:21.7]}
32. Bg5 {[%clk 0:02:06.8]} 32... Kg7 {[%clk 0:00:22.3]} 33. Be3 {[%clk
0:01:55.6]} 33... Ne2+ {[%clk 0:00:22.2]} 34. Kh2 {[%clk 0:01:51.2]} 34... a3
{[%clk 0:00:22.5]} 35. e5 {[%clk 0:01:20.6]} 35... a2 {[%clk 0:00:23.6]} 36. e6
{[%clk 0:01:22.2]} 36... a1=Q {[%clk 0:00:24.2]} 37. Rxf7+ {[%clk 0:01:23.7]}
37... Kg8 {[%clk 0:00:25.5]} 38. Rxf3 {[%clk 0:01:22.3]} 38... Qxf1 {[%clk
0:00:22.8]} 0-1

[Event "*** Titled Tuesday Blitz"]
[Site "Chess.com"]
[Date "2019.02.05"]
[Round "3"]
[White "tteshan"]
[Black "sandager"]
[Result "0-1"]
[WhiteElo "2124"]
[BlackElo "2133"]
[TimeControl "180+2"]
[EndTime "13:35:04 PST"]
[Termination "sandager won by checkmate"]

1. Nf3 {[%clk 0:03:01.9]} 1... Nf6 {[%clk 0:02:59.8]} 2. d4 {[%clk 0:03:00.6]}
2... g6 {[%clk 0:03:00.3]} 3. c4 {[%clk 0:02:57.4]} 3... Bg7 {[%clk 0:03:00.6]}
4. Nc3 {[%clk 0:02:58.6]} 4... d5 {[%clk 0:03:01.9]} 5. cxd5 {[%clk 0:02:58.9]}
5... Nxd5 {[%clk 0:03:02.5]} 6. Nxd5 {[%clk 0:02:59.6]} 6... Qxd5 {[%clk
0:03:02.3]} 7. Bf4 {[%clk 0:02:58.4]} 7... c5 {[%clk 0:03:02.6]} 8. e3 {[%clk
0:02:56.5]} 8... O-O {[%clk 0:03:00.3]} 9. Be2 {[%clk 0:02:47.9]} 9... Nc6
{[%clk 0:02:59.2]} 10. dxc5 {[%clk 0:02:41.1]} 10... Qxc5 {[%clk 0:02:57.4]} 11.
Qb3 {[%clk 0:02:27.6]} 11... Qa5+ {[%clk 0:02:46]} 12. Nd2 {[%clk 0:02:24.5]}
12... Rd8 {[%clk 0:02:44.3]} 13. Rd1 {[%clk 0:02:24.3]} 13... e5 {[%clk
0:01:59.5]} 14. Bg5 {[%clk 0:02:06.5]} 14... Rd6 {[%clk 0:01:51]} 15. e4 {[%clk
0:01:53.7]} 15... Be6 {[%clk 0:01:48.1]} 16. Qc2 {[%clk 0:01:45.3]} 16... Nd4
{[%clk 0:01:36.9]} 17. Qc3 {[%clk 0:01:14.6]} 17... Qxa2 {[%clk 0:01:30.4]} 18.
Bc4 {[%clk 0:01:00.7]} 18... Bxc4 {[%clk 0:01:25.9]} 19. Nxc4 {[%clk 0:00:58.8]}
19... Rc8 {[%clk 0:01:19.3]} 20. Qa3 {[%clk 0:00:28.1]} 20... Qxc4 {[%clk
0:01:16.2]} 21. Rd2 {[%clk 0:00:16.3]} 21... Ra6 {[%clk 0:01:10.2]} 22. Qe7
{[%clk 0:00:10.7]} 22... Nc2+ {[%clk 0:00:44.7]} 23. Kd1 {[%clk 0:00:10.1]}
23... Nd4 {[%clk 0:00:42.4]} 24. Qe8+ {[%clk 0:00:09.5]} 24... Rxe8 {[%clk
0:00:40.8]} 25. Rxd4 {[%clk 0:00:10.7]} 25... Qxd4+ {[%clk 0:00:40.8]} 26. Kc2
{[%clk 0:00:11.7]} 26... Rc8+ {[%clk 0:00:40.7]} 27. Kb3 {[%clk 0:00:12.9]}
27... Rb6+ {[%clk 0:00:40.1]} 28. Ka3 {[%clk 0:00:12.1]} 28... Qxb2+ {[%clk
0:00:40.3]} 29. Ka4 {[%clk 0:00:10.2]} 29... Qb4# {[%clk 0:00:40.6]} 0-1

[Event "*** Titled Tuesday Blitz"]
[Site "Chess.com"]
[Date "2019.02.05"]
[Round "3"]
[White "arctic_t00"]
[Black "Muisback26"]
[Result "0-1"]
[WhiteElo "2374"]
[BlackElo "2857"]
[TimeControl "180+2"]
[EndTime "13:35:05 PST"]
[Termination "Muisback26 won by resignation"]

1. d4 {[%clk 0:03:01.9]} 1... Nf6 {[%clk 0:03:00.3]} 2. Nf3 {[%clk 0:03:02.5]}
2... g6 {[%clk 0:02:59.6]} 3. c4 {[%clk 0:03:02.6]} 3... Bg7 {[%clk 0:03:00.8]}
4. Nc3 {[%clk 0:03:03.7]} 4... O-O {[%clk 0:03:02.3]} 5. e4 {[%clk 0:03:04.3]}
5... d6 {[%clk 0:03:03.7]} 6. Be2 {[%clk 0:03:04.9]} 6... e5 {[%clk 0:03:03]} 7.
O-O {[%clk 0:03:05.2]} 7... Na6 {[%clk 0:03:03.6]} 8. Be3 {[%clk 0:03:04.7]}
8... Qe7 {[%clk 0:03:03.3]} 9. Qc2 {[%clk 0:02:22.8]} 9... Bg4 {[%clk
0:02:53.2]} 10. dxe5 {[%clk 0:01:57]} 10... dxe5 {[%clk 0:02:53.5]} 11. Nd5
{[%clk 0:01:57.9]} 11... Qe8 {[%clk 0:02:20.9]} 12. a3 {[%clk 0:01:40.8]} 12...
c6 {[%clk 0:02:20.7]} 13. Nc3 {[%clk 0:01:42]} 13... Qe7 {[%clk 0:02:17.6]} 14.
b4 {[%clk 0:01:41.7]} 14... Nc7 {[%clk 0:02:18.5]} 15. Bc5 {[%clk 0:01:40.6]}
15... Qe8 {[%clk 0:02:18.6]} 16. Bxf8 {[%clk 0:01:39.9]} 16... Bxf8 {[%clk
0:02:20.5]} 17. h3 {[%clk 0:01:34.7]} 17... Bxf3 {[%clk 0:02:19.1]} 18. Bxf3
{[%clk 0:01:36.6]} 18... Ne6 {[%clk 0:02:20.2]} 19. Ne2 {[%clk 0:01:30.1]} 19...
h5 {[%clk 0:02:09.9]} 20. g3 {[%clk 0:01:14.3]} 20... h4 {[%clk 0:02:06.3]} 21.
Bg2 {[%clk 0:01:11.1]} 21... Bh6 {[%clk 0:01:51.8]} 22. Rad1 {[%clk 0:01:07.5]}
22... a5 {[%clk 0:01:50.8]} 23. f4 {[%clk 0:00:50.1]} 23... hxg3 {[%clk
0:01:48.9]} 24. f5 {[%clk 0:00:36.7]} 24... Nf4 {[%clk 0:01:45.6]} 25. Nxg3
{[%clk 0:00:31.7]} 25... axb4 {[%clk 0:01:45.4]} 26. axb4 {[%clk 0:00:33.6]}
26... Ra3 {[%clk 0:01:45.2]} 27. Kh2 {[%clk 0:00:25]} 27... Qa8 {[%clk
0:01:42.4]} 28. Rd6 {[%clk 0:00:21.1]} 28... Ra2 {[%clk 0:01:40.3]} 29. Rd8+
{[%clk 0:00:14.3]} 29... Kg7 {[%clk 0:01:32.6]} 30. Rxa8 {[%clk 0:00:15.5]}
30... Rxc2 {[%clk 0:01:33.5]} 31. Rg1 {[%clk 0:00:16.7]} 31... Rxc4 {[%clk
0:01:27.9]} 32. Rb1 {[%clk 0:00:11.9]} 32... Rc2 {[%clk 0:01:27.6]} 33. Rg1
{[%clk 0:00:13.1]} 33... N6h5 {[%clk 0:01:24.7]} 34. Nxh5+ {[%clk 0:00:12.6]}
34... Nxh5 {[%clk 0:01:25.4]} 35. h4 {[%clk 0:00:04.5]} 35... Bf4+ {[%clk
0:01:25.4]} 36. Kh1 {[%clk 0:00:04.4]} 36... Ng3+ {[%clk 0:01:25.3]} 37. Kh2
{[%clk 0:00:05.9]} 37... Nxe4+ {[%clk 0:01:26.2]} 0-1